Cogmind - Beta 14 @@@ ROGUE MODE // 2024.09.04 @ 23:44:48 Player: CONM Result: Destroyed by Y-54 Guardian with Gatling Laser Performance ------------- Evolutions (3) 1500 Regions Visited (8) 1600 Robots Destroyed (52) 260 Value Destroyed (1701) 1701 Prototype IDs (4) 80 Alien Tech Used (0) 0 Bonus (93) 93 TOTAL SCORE: 5234 Bonus ------- High Alert Combat Kills 93 Cogmind --------- Core Integrity 0/700 Matter 129/300 Energy 99/100 System Corruption 2% Temperature Cool (15) Movement Core (50) Location -7/Storage Parts ------- > --- POWER (1) -------- (None) > --- PROPULSION (5) --- (None) > --- UTILITY (5) ------ (None) > --- WEAPON (2) ------- (None) > --- INVENTORY (5) ---- Melee Analysis Suite Reactive Plating Drone Bay (2/2) Gauss Cannon Power Maul Peak State ------------ > --- POWER ------------ Micro Nuclear Core > --- PROPULSION ------- Airjet Airjet Aerolev Unit Gravmag System Gravmag System > --- UTILITY ---------- Large Storage Unit Structural Scanner Melee Analysis Suite Microactuators Drone Bay > --- WEAPON ----------- Power Maul Axe > --- INVENTORY -------- Ion Engine Wheel Improved Hover Unit Advanced Weight Redist. System Microactuators Microactuators Improved Medium Armor Plating Improved Medium Armor Plating Reactive Plating Hardlight Generator Gauss Cannon Rocket Launcher Rocket Launcher Heavy Flail Power Maul [Rating: 47] Favorites ----------- Power Nuclear Core Engine Improved Ion Engine Power Core Nuclear Core Propulsion Improved Titanium Leg Leg Improved Titanium Leg Wheel Wheel Hover Unit Airjet Utility Large Storage Unit Device Structural Scanner Storage Large Storage Unit Processor Melee Analysis Suite Protection Improved Medium Armor Plating Weapon Axe Ballistic Gun Assault Rifle Ballistic Cannon Gauss Cannon Launcher Rocket Launcher Impact Weapon Hammer Slashing Weapon Axe Build | -11 -10 -9 -9 -9 -8 -8 -7 -7 ------- Run | Yrd Mat Mat Min Exi Min Mat Fac Sto Slots Evolved 6 | . . 2 . . . 2 2 . Power . | . . . . . . . . . Propulsion 3 | . . . . . . 2 1 . Utility 3 | . . 2 . . . . 1 . Weapon . | . . . . . . . . . Parts Attached 74 | 7 . 11 1 . 5 20 16 14 Power 7 | 1 . 2 . . 1 2 1 . Engine 3 | 1 . 2 . . . . . . Core 4 | . . . . . 1 2 1 . Reactor . | . . . . . . . . . Propulsion 30 | 2 . 3 1 . 3 8 9 4 Treads . | . . . . . . . . . Leg 12 | 2 . 3 1 . 1 4 1 . Wheel 3 | . . . . . 2 1 . . Hover 15 | . . . . . . 3 8 4 Flight . | . . . . . . . . . Utility 21 | 2 . 3 . . . 6 4 6 Device 13 | 1 . 1 . . . 4 3 4 Storage 2 | 1 . 1 . . . . . . Processor 1 | . . . . . . 1 . . Hackware . | . . . . . . . . . Protection 5 | . . 1 . . . 1 1 2 Artifact . | . . . . . . . . . Weapon 16 | 2 . 3 . . 1 4 2 4 Energy Gun . | . . . . . . . . . Energy Cannon . | . . . . . . . . . Ballistic Gun 3 | 2 . . . . . 1 . . Ballistic Cannon 3 | . . 1 . . . . 1 1 Launcher 6 | . . 1 . . 1 2 . 2 Special Weapon . | . . . . . . . . . Impact Weapon 2 | . . 1 . . . . 1 . Slashing Weapon 2 | . . . . . . 1 . 1 Piercing Weapon . | . . . . . . . . . Special Melee Weapon . | . . . . . . . . . Unidentified Prototypes 2 | . . . . . . . 1 1 Parts Lost 31 | . . 5 . . 4 8 1 13 Power 2 | . . . . . . 1 . 1 Propulsion 16 | . . 1 . . 3 4 1 7 Utility 7 | . . 2 . . 1 1 . 3 Weapon 6 | . . 2 . . . 2 . 2 Highest Loss Streak 12 | . . 2 . . 4 8 1 12 To Critical Strikes . | . . . . . . . . . Average Slot Usage (%) 88 | . 100 92 66 66 64 91 94 95 Engine 4 | . 14 11 11 11 3 . . . Core 4 | . . . . . 7 8 7 6 Leg 21 | . 28 21 22 22 12 28 25 . Hover 6 | . . . . . . 2 9 35 Device 13 | . 14 21 11 11 6 9 9 20 Storage 9 | . 14 11 11 11 11 9 7 6 Processor 4 | . . . . . . 8 7 6 Protection 5 | . . 5 . . . 6 10 1 Ballistic Gun 3 | . 28 9 . . . 4 . . Ballistic Cannon 2 | . . 8 . . . . 5 . Launcher 2 | . . 1 . . 4 7 . . Impact Weapon 3 | . . 1 11 11 11 1 . 6 Slashing Weapon 2 | . . . . . . 2 7 6 Peak Build Rating 47 | 7 7 14 8 8 10 38 46 47 Average Rating 25 | 5 7 12 8 8 9 32 41 44 On Entrance 14 | . 7 7 7 8 8 10 37 46 Naked Turns 7 | . . . . . . . . 7 Heaviest Build 55 | 14 14 38 30 30 33 42 55 49 Greatest Support 95 | 20 20 20 20 20 20 80 95 42 Greatest Overweight (x) 8 | . . 3 1 1 2 8 6 3 Average Overweight (x) . | . . . 1 1 1 . . . Largest Inventory Capacity 15 | 8 8 15 15 15 15 15 15 15 Average Capacity 13 | 7 8 10 15 15 15 15 15 14 Most Carried 15 | 3 5 13 11 12 13 15 15 15 Average Carried 12 | 1 3 9 11 11 11 14 14 14 Final Capacity 15 | 8 8 15 15 15 15 15 15 5 Final Carried 15 | 3 5 12 11 12 11 15 15 5 Class Distribution -------------------- 56% | Mutant 32% | Scavenger-Mutant 9% | Scavenger-Gladiator Dominant Class ---------------- Mutant | -10/Materials Scavenger-Mutant | -9/Materials Scavenger-Mutant | -9/Mines Scavenger-Mutant | -9/Exiles Scavenger-Mutant | -8/Mines Mutant | -8/Materials Mutant | -7/Factory Scavenger-Gladiator | -7/Storage Resources | -11 -10 -9 -9 -9 -8 -8 -7 -7 ----------- Run | Yrd Mat Mat Min Exi Min Mat Fac Sto Matter Collected 1372 | 269 . 494 10 . 15 238 205 141 Remotely . | . . . . . . . . . Salvage Created 1468 | 30 . 631 12 . 18 198 232 347 Parts 83 | 5 . 40 . . 6 13 11 8 Haulers Intercepted . | . . . . . . . . . Recyclers Shooed 1 | . . . . . . . . 1 Parts Field Recycled . | . . . . . . . . . Retrieved Matter . | . . . . . . . . . Parts Self-Destructed . | . . . . . . . . . Prevented . | . . . . . . . . . Kills | -11 -10 -9 -9 -9 -8 -8 -7 -7 ------- Run | Yrd Mat Mat Min Exi Min Mat Fac Sto Combat Hostiles Destroyed 42 | . . 20 . . 3 5 3 11 Melee 9 | . . . . . . 1 2 6 Guns 5 | . . 5 . . . . . . Cannons 11 | . . 11 . . . . . . AOE 14 | . . 4 . . 3 4 . 3 Classes Destroyed 11 | 1 . 5 . . 1 1 3 . Worker 5 | . . 1 . . . 1 2 1 Builder 2 | . . . . . . 1 . 1 Tunneler 2 | 1 . . 1 . . . . . Watcher 1 | . . . . . . . 1 . Swarmer 9 | . . . . . 3 . . 6 Grunt 22 | . . 15 . . . 3 . 4 Brawler 1 | . . 1 . . . . . . Duelist 1 | . . 1 . . . . . . Sentry 7 | . . 3 . . . 2 1 1 Hunter 1 | . . . . . . . 1 . Programmer 1 | . . . . . . . 1 . Best Kill Streak 7 | 1 . 7 1 . 3 4 2 3 Combat Bots Only 7 | . . 7 . . 3 4 1 3 Max Kills in Single Turn 3 | 1 . 3 1 . 3 2 1 1 Gunslinging . | . . . . . . . . . Exploded 3 | . . 3 . . 3 2 . 1 Melee 1 | . . . . . . 1 1 1 Uniques/NPCs Destroyed . | . . . . . . . . . Combat | -11 -10 -9 -9 -9 -8 -8 -7 -7 -------- Run | Yrd Mat Mat Min Exi Min Mat Fac Sto Hostile Shots Fired 662 | . . 124 . . 33 104 52 349 Missed 250 | . . 38 . . 13 32 26 141 Damage Taken 4654 | . . 1101 . . 207 1176 279 1891 Core 1423 | . . 237 . . 28 454 38 666 Absorbed by Shields . | . . . . . . . . . Ignored by Resistances 40 | . . . . . . . 40 . Core Remaining (%) 62 | 100 100 . . . 33 17 . . Volleys Fired 90 | 3 2 58 . . 1 14 1 11 Largest 2 | 2 2 2 . . 1 2 1 2 Hottest 81 | 40 40 59 . . 33 63 48 81 Shots Fired 144 | 6 4 96 . . 1 17 2 18 Gun 58 | 6 4 41 . . . 7 . . Cannon 56 | . . 50 . . . . 2 4 Launcher 30 | . . 5 . . 1 10 . 14 Special . | . . . . . . . . . Kinetic 114 | 6 4 91 . . . 7 2 4 Thermal . | . . . . . . . . . Explosive 30 | . . 5 . . 1 10 . 14 Electromagnetic . | . . . . . . . . . Robot Hit Streak 14 | 3 1 14 . . . 3 1 5 Robot Miss Streak 4 | 1 3 4 . . 1 2 . 2 Penetration Max . | . . . . . . . . . Secondary Targets . | . . . . . . . . . Shots Hit Robots 130 | 4 1 68 1 . 1 16 11 28 Core Hits 75 | 2 1 30 . . 3 14 5 20 Critical Kills 2 | . . 1 . . . . . 1 Critical Parts Destroyed 8 | . . 1 1 . . . 2 4 Critical Strikes 12 | . . 2 1 . . . 3 6 Destroy 2 | . . 2 . . . . . . Smash 8 | . . . 1 . . . 2 5 Sever 2 | . . . . . . . 1 1 Melee Attacks 71 | . . 1 1 . 3 11 15 40 Impact 51 | . . 1 1 . 3 9 5 32 Slashing 20 | . . . . . . 2 10 8 Piercing . | . . . . . . . . . Sneak Attacks 8 | . . 1 1 . . 1 2 3 Combat Hostiles . | . . . . . . . . . Follow-up Attacks 4 | . . . . . . . 1 3 Damage Inflicted 4808 | 37 9 1471 74 . 184 625 481 1927 Guns 386 | 37 9 309 . . . 31 . . Cannons 946 | . . 860 . . . . . 86 Explosions 1544 | . . 259 . . 147 419 . 719 Melee 1932 | . . 43 74 . 37 175 481 1122 Ramming . | . . . . . . . . . Kinetic 1332 | 37 9 1169 . . . 31 . 86 Thermal . | . . . . . . . . . Explosive 1544 | . . 259 . . 147 419 . 719 Electromagnetic . | . . . . . . . . . Impact 1440 | . . 43 74 . 37 88 192 1006 Slashing 492 | . . . . . . 87 289 116 Piercing . | . . . . . . . . . Highest Corruption 2 | . . . . . . . 2 2 Average Corruption 2 | . . . . . . . 2 2 Corruption Purged . | . . . . . . . . . Corruption Blocked . | . . . . . . . . . Effects 11 | . . . . . . . 6 5 Message Errors 2 | . . . . . . . 1 1 Matter Fused 4 | . . . . . . . 1 3 Heat Flow Errors 1 | . . . . . . . 1 . Energy Discharges 1 | . . . . . . . 1 . Data Loss (minor) 1 | . . . . . . . 1 . Data Loss (major) 1 | . . . . . . . . 1 Misfires 1 | . . . . . . . 1 . Overload Shots . | . . . . . . . . . Overflow Damage 505 | . . 9 74 . . 5 103 314 Projectiles 6 | . . 6 . . . . . . Explosions 14 | . . . . . . 5 . 9 Melee 485 | . . 3 74 . . . 103 305 Knockbacks 11 | . . 10 . . . . . 1 Impact 1 | . . . . . . . . 1 Kinetic 9 | . . 9 . . . . . . Secondary 1 | . . 1 . . . . . . Self-Inflicted Damage 305 | . . 15 . . 39 44 . 207 Shots 12 | . . 2 . . 1 3 . 6 Rammed . | . . . . . . . . . Targets Rammed . | . . . . . . . . . Kicked . | . . . . . . . . . Crushed . | . . . . . . . . . Highest Temperature 232 | . . 10 . . . 33 232 162 Average Temperature 84 | . . 10 . . . 14 119 87 Received Heat Transfer 1473 | . . 417 . . . 549 18 489 Siege Activations . | . . . . . . . . . Robots Corrupted 4 | . . 1 . . . . 1 2 Combat Hostiles 3 | . . . . . . . 1 2 Parts Fried 10 | . . 2 3 . . . 1 4 Impact Corruptions 17 | . . 1 3 . . . 3 10 Robots Melted . | . . . . . . . . . Combat Hostiles . | . . . . . . . . . Parts Melted . | . . . . . . . . . Heat Transferred . | . . . . . . . . . Parts Sabotaged . | . . . . . . . . . Parts Stolen . | . . . . . . . . . Parts Stripped . | . . . . . . . . . Power Chain Reactions . | . . . . . . . . . Alert | -11 -10 -9 -9 -9 -8 -8 -7 -7 ------- Run | Yrd Mat Mat Min Exi Min Mat Fac Sto Peak Influence 588 | 5 3 454 141 . 78 172 103 588 Initial 136 | . 3 . 136 . . 29 32 13 Average 129 | 1 3 299 136 . 31 53 44 249 Maximum Alert Level 2 | . . 2 . . . . . 2 Low Security (%) 73 | 100 100 10 100 . 100 100 100 44 Level 1 18 | . . 67 . . . . . 24 Level 2 8 | . . 21 . . . . . 30 Level 3 . | . . . . . . . . . Level 4 . | . . . . . . . . . Level 5 . | . . . . . . . . . High Security . | . . . . . . . . . Max Security . | . . . . . . . . . Squads Dispatched 7 | . . 2 . . . . 3 2 Investigation 3 | . . 1 . . . . . 2 Extermination 2 | . . . . . . . 2 . Reinforcement 2 | . . 1 . . . . 1 . Assault . | . . . . . . . . . Garrison . | . . . . . . . . . Intercept . | . . . . . . . . . Searches Triggered . | . . . . . . . . . Construction Impeded . | . . . . . . . . . Haulers Reinforced . | . . . . . . . . . Active Scanning Responses . | . . . . . . . . . Cargo Convoy Interrupts . | . . . . . . . . . Stealth | -11 -10 -9 -9 -9 -8 -8 -7 -7 --------- Run | Yrd Mat Mat Min Exi Min Mat Fac Sto Distress Signals 5 | . . 1 . . . 1 . 3 Communications Jammed . | . . . . . . . . . Distress Signals . | . . . . . . . . . Times Spotted 82 | . 1 34 . . 3 9 7 28 Peak Tracking Total 9 | . 1 9 . . 3 5 3 7 Tactical Retreats 11 | . . 4 . . . 2 . 5 Traps | -11 -10 -9 -9 -9 -8 -8 -7 -7 ------- Run | Yrd Mat Mat Min Exi Min Mat Fac Sto Traps Triggered 2 | . . 1 . . . . 1 . Indirectly . | . . . . . . . . . Trap Hack Attempts . | . . . . . . . . . Triggered . | . . . . . . . . . Disarmed . | . . . . . . . . . Reprogrammed . | . . . . . . . . . Reused . | . . . . . . . . . Traps Extracted . | . . . . . . . . . Installed . | . . . . . . . . . Triggered . | . . . . . . . . . Machines | -11 -10 -9 -9 -9 -8 -8 -7 -7 ---------- Run | Yrd Mat Mat Min Exi Min Mat Fac Sto Machines Disabled 4 | . . 1 . . . . . 3 Max in Single Turn 1 | . . 1 . . . . . 1 Garrison Access 1 | . . . . . . 1 . . Machines Repaired . | . . . . . . . . . Machines Dismantled . | . . . . . . . . . Machines Sabotaged . | . . . . . . . . . Overloaded Fab Kills . | . . . . . . . . . Hacking | -11 -10 -9 -9 -9 -8 -8 -7 -7 --------- Run | Yrd Mat Mat Min Exi Min Mat Fac Sto Machines Accessed 16 | . . 3 . 1 . 6 2 4 Terminals 10 | . . 3 . . . 4 . 3 Fabricators 1 | . . . . . . . 1 . Repair Stations . | . . . . . . . . . Recycling Units 1 | . . . . . . 1 . . Scanalyzers 1 | . . . . . . . 1 . Garrison Access 2 | . . . . . . 1 . 1 Total Hacks 34 | . . 7 . 1 . 11 5 10 Successful 13 | . . 4 . 1 . 7 . 1 Failed 21 | . . 3 . . . 4 5 9 Catastrophic 6 | . . 1 . . . 1 1 3 Database Lockouts . | . . . . . . . . . Manual 15 | . . 4 . . . 6 . 5 Terminals 24 | . . 7 . . . 9 . 8 Fabricators 3 | . . . . . . . 3 . Repair Stations . | . . . . . . . . . Recycling Units 1 | . . . . . . 1 . . Scanalyzers 2 | . . . . . . . 2 . Garrison Access 3 | . . . . . . 1 . 2 Terminal Hacks 7 | . . 2 . 1 . 3 . 1 Record 1 | . . . . 1 . . . . Prototype ID Bank 1 | . . . . . . 1 . . Open Door 1 | . . . . . . . . 1 Branch Access Points 1 | . . . . . . 1 . . Terminal Index 1 | . . . . . . 1 . . Hauler Manifests 1 | . . 1 . . . . . . Zone Layout 1 | . . 1 . . . . . . Fabricator Hacks . | . . . . . . . . . Repair Station Hacks . | . . . . . . . . . Recycling Unit Hacks 1 | . . . . . . 1 . . Report Inventory 1 | . . . . . . 1 . . Scanalyzer . | . . . . . . . . . Garrison Access Hacks 1 | . . . . . . 1 . . Seal Access 1 | . . . . . . 1 . . Unauthorized Hacks 4 | . . 2 . . . 2 . . Terminals 4 | . . 2 . . . 2 . . Botnet 4 | . . 2 . . . 2 . . Fabricators . | . . . . . . . . . Repair Stations . | . . . . . . . . . Recycling Units . | . . . . . . . . . Scanalyzers . | . . . . . . . . . Garrison Access . | . . . . . . . . . Data Cores Recovered . | . . . . . . . . . Used . | . . . . . . . . . Hacking Detections 10 | . . 2 . . . 2 2 4 Full Trace Events 1 | . . . . . . . . 1 Feedback Events . | . . . . . . . . . Feedback Blocked . | . . . . . . . . . Robot Schematics Acquired . | . . . . . . . . . Robots Built . | . . . . . . . . . Authchips . | . . . . . . . . . Time . | . . . . . . . . . Total Robot Build Rating . | . . . . . . . . . Part Schematics Acquired . | . . . . . . . . . Parts Built . | . . . . . . . . . Authchips . | . . . . . . . . . Time . | . . . . . . . . . Total Part Build Rating . | . . . . . . . . . Parts Repaired . | . . . . . . . . . Time . | . . . . . . . . . Parts Recycled . | . . . . . . . . . Recycled Matter . | . . . . . . . . . Retrieved Matter . | . . . . . . . . . Retrieved Components . | . . . . . . . . . Parts Scanalyzed . | . . . . . . . . . Part Schematics Acquired . | . . . . . . . . . Parts Damaged . | . . . . . . . . . Bothacking | -11 -10 -9 -9 -9 -8 -8 -7 -7 ------------ Run | Yrd Mat Mat Min Exi Min Mat Fac Sto Used RIF Installer . | . . . . . . . . . Robots Hacked . | . . . . . . . . . Non-combat . | . . . . . . . . . Combat . | . . . . . . . . . Robot Hacks Applied . | . . . . . . . . . Relay Couplers Released . | . . . . . . . . . Fabnet Peak Effective % . | . . . . . . . . . Robots Rewired . | . . . . . . . . . Allies Hacked . | . . . . . . . . . Hacks Repelled . | . . . . . . . . . Allies | -11 -10 -9 -9 -9 -8 -8 -7 -7 -------- Run | Yrd Mat Mat Min Exi Min Mat Fac Sto Total Allies 2 | . . . 2 . . . . . Largest Group 2 | . . . 2 2 . . . . Highest-Rated Group 50 | . . . 50 50 . . . . Highest-Rated Ally 31 | . . . 31 31 . . . . Total Orders 3 | . . . . . . . . 3 EXPLORE 3 | . . . . . . . . 3 Ally Attacks . | . . . . . . . . . Total Damage . | . . . . . . . . . Kills . | . . . . . . . . . Allies Corrupted . | . . . . . . . . . Allies Melted . | . . . . . . . . . Intel | -11 -10 -9 -9 -9 -8 -8 -7 -7 ------- Run | Yrd Mat Mat Min Exi Min Mat Fac Sto Robot Analysis Total . | . . . . . . . . . Derelict Logs Recovered . | . . . . . . . . . Drone Launches 3 | . . . . . . . . 3 Drone Recoveries 3 | . . . . . . . . 3 Exploration | -11 -10 -9 -9 -9 -8 -8 -7 -7 ------------- Run | Yrd Mat Mat Min Exi Min Mat Fac Sto Turns Passed 4303 | 87 109 915 194 313 268 1113 853 451 Spaces Moved 3026 | 58 85 405 101 165 185 826 754 447 Core 36 | 6 . . . . . 16 . 14 Treads . | . . . . . . . . . Legs 1983 | 52 85 405 101 165 78 634 463 . Wheels 168 | . . . . . 107 61 . . Hover 839 | . . . . . . 115 291 433 Flight . | . . . . . . . . . Fastest Speed 40 | 50 120 120 190 190 95 52 42 40 Average Speed 117 | 112 120 169 190 190 135 118 96 50 Slowest Speed 450 | 120 120 330 190 190 260 450 430 230 Overloaded Moves . | . . . . . . . . . Propulsion Burnouts . | . . . . . . . . . Robots Hopped . | . . . . . . . . . Cave-ins Triggered . | . . . . . . . . . Exploration Rate (%) 39 | 3 22 40 27 49 68 60 18 70 Regions Visited 8 Branch Regions 4 Pre-discovered Areas 1 | . . . . 1 . . . . Known Exits Taken . | . . . . . . . . . Unknown Exits Taken 8 | 1 1 1 1 1 1 1 1 . Scrap Searched 1 | . . . . . 1 . . . Spaces Dug 11 | . . . . . . 4 2 5 Terrain Destroyed 172 | . . 29 . . 8 57 3 75 Melee 11 | . . . . . . 4 2 5 Projectile 3 | . . . . . . . 1 2 AOE 158 | . . 29 . . 8 53 . 68 Terrain Rammed . | . . . . . . . . . Walls Destroyed . | . . . . . . . . . Machines Disabled . | . . . . . . . . . Actions | -11 -10 -9 -9 -9 -8 -8 -7 -7 --------- Run | Yrd Mat Mat Min Exi Min Mat Fac Sto Total 3560 | 70 88 536 102 165 195 924 857 623 Wait 240 | . . 46 . . . 29 56 109 Move 3018 | 57 84 404 100 164 184 825 753 447 Hop . | . . . . . . . . . Pick Up 42 | 3 2 9 . 1 2 16 6 3 Fast Attach 22 | 7 . 2 . . . 8 5 . Attach 23 | . . 1 1 . 4 9 4 4 Detach 3 | . . . . . . 1 1 1 Swap 29 | . . 8 . . 1 3 7 10 Drop 31 | . . 7 . . . 8 10 6 Fire 90 | 3 2 58 . . 1 14 1 11 Melee 62 | . . 1 1 . 3 11 14 32 Ram . | . . . . . . . . . Kick . | . . . . . . . . . Crush . | . . . . . . . . . Escape Stasis . | . . . . . . . . . Rewire . | . . . . . . . . . Trap . | . . . . . . . . . Miscellaneous . | . . . . . . . . . Route ------- -11/Scrapyard -10/Materials -9/Materials -9/Mines -9/Exiles (discovered 2 exits: [*Min x2]) -8/Mines -8/Materials -7/Factory (discovered 2 exits: [*Fac] / *Sto) -7/Storage (discovered 1 exit: [*Fac]) History --------- Turn | Location | Event 4 | -11/Scrapyard | Discovered new exit (range 14) 88 | -11/Scrapyard | Entered Materials 191 | -10/Materials | Discovered new exit (range 5) 197 | -10/Materials | Entered another Materials area 197 | -9/Materials | Evolved 2 slots: Utility x2 309 | -9/Materials | Build established: Mutant 456 | -9/Materials | Destroyed 7 combat bots 737 | -9/Materials | Build established: Scavenger-Mutant 1091 | -9/Materials | Discovered new exit (range 11) 1102 | -9/Materials | Core integrity fell below 50% 1112 | -9/Materials | Entered Mines 1295 | -9/Mines | Deemed a non-threat by the Exiles lab entrance 1297 | -9/Mines | Discovered new exit (range 5) 1306 | -9/Mines | Entered Exiles 1306 | -9/Exiles | Accompanied by 2 allies 1331 | -9/Exiles | Discovered new exit (range 15) 1336 | -9/Exiles | Led the pair of lost Derelicts to a safe place 1354 | -9/Exiles | Met 8R-AWN 1390 | -9/Exiles | Met EX-HEX 1462 | -9/Exiles | Met EX-DEC 1472 | -9/Exiles | Learned location of Zion (-7) 1592 | -9/Exiles | Discovered new exit (range 14) 1619 | -9/Exiles | Entered Mines 1810 | -8/Mines | Lost 4 parts (3n1u) 1875 | -8/Mines | Discovered new exit (range 15) 1887 | -8/Mines | Entered Materials 1887 | -8/Materials | Evolved 2 slots: Propulsion x2 2084 | -8/Materials | Build established: Mutant 2090 | -8/Materials | Core integrity fell below 50% 2110 | -8/Materials | Core integrity fell below 20% 2123 | -8/Materials | Lost 8 parts (1p4n1u2w) 2871 | -8/Materials | Met 7R-MNS 2987 | -8/Materials | Discovered new exit (range 8) 3000 | -8/Materials | Entered Factory 3000 | -7/Factory | Evolved 2 slots: Propulsion x1, Utility x1 3001 | -7/Factory | Caught up to 7R-MNS 3483 | -7/Factory | Discovered new exit (range 11) 3768 | -7/Factory | Discovered new exit (range 11) 3853 | -7/Factory | Entered Storage 4109 | -7/Storage | Build established: Scavenger-Gladiator 4230 | -7/Storage | Discovered new exit (range 5) 4294 | -7/Storage | Core integrity fell below 50% 4297 | -7/Storage | Released all parts (2) 4302 | -7/Storage | Core integrity fell below 20% 4304 | -7/Storage | Destroyed by Y-54 Guardian with Gatling Laser Last Messages --------------- 04277_ The unstable cave ceiling collapses. 04283_ Slug penetrates Wall. 04285_ G-47 Trooper destroyed. 04286_ Imp. Medium Armor Plating destroyed. 04286_ Aerolev Unit destroyed. 04286_ Rocket Launcher destroyed. 04288_ Identified Cld. Airjet. 04289_ Dropped Imp. Medium Armor Plating. 04290_ Aerolev Unit destroyed. 04291_ Gravmag System destroyed. 04292_ Airjet destroyed. 04293_ Critical hit (Burn: +37). 04293_ Structural Scanner destroyed. 04295_ The unstable cave ceiling collapses. 04296_ Mic. Nuclear Core destroyed. 04296_ Cld. Airjet destroyed. 04297_ Released Melee Analysis Suite. 04297_ Released Lrg. Storage Unit. 04303_ Acquired 38 matter. 04303_ R-06 Scavenger collects Particle Gun. Map ----- +----------------------------------------------------+ | ????????????????????????????? | | ????????????????????????????? | | ????????????????????????????? | | ????????????????????????????? | | ????????????????????????????? | | ????????????????????????????? | | ?????????????????????######## | | ?????????????????????######## | | ??????????????????##### # | | ??????????????????##### # | | ??????????????????## # | | #### ????????????### ! # | | #### ????????????### | | # ????????????## | | # ????????????### /! | | # ????????????### *!! | | + ????????????### !/! | | # ????????????##T ## | | " # ????????????###" # # | | G" # ????????????###[]# # | | " # ?????????????##[]# g # | | # ?????????????##[]# Y # | | #### ?????????????##### =YY# | | #### ?????????????### # | | ##??????????????????## Y% | | ####????????????????# r@ # | | ####????????????????# | | ##????????????????##%% | | ##?????????????????### # | | ##?????????????????### ## | | * ##??????????????????## ## | | ##??????????????????## ## | | #"??????????????????## ## | | #T??????????????????## ## | | #"??????????????????## ## | | ####??????????????????## ## | | ####??????????????????## ## | | ??????????????????????## ## | | #### ? ##??????????##### ## | | #### ##??????????#####u ## | | + ??????????##""" ## | | ####??## ??????????##"Y ## | | ##################?##""" ## | | ??################?##### ## | | #### % # ? # ## | | #### = # """""" # ## | | + ]# "][=[" # ## | | # / [ !# "[ [[ / ## | | #######/### ""=""" # ## | | ###### ## # ## | +----------------------------------------------------+ Best States ------------- Heat Dissipation 42 Energy Generation 15 Energy Capacity 265 Matter Stores 300 Matter Capacity 300 Sight Range 16 Robot Scan Range 14 Terrain Scan Density 10 Additional Mass Support 9 Armor Coverage 450 Resistance: KI 20 Melee Speed Boost 40 Evasion (%) 57 Melee Accuracy 5 Item Schematics ----------------- None Robot Schematics ------------------ None Fabricated ------------ Nothing Alien Tech Used ----------------- None Achievements -------------- None Challenges ------------ None Game ------ Seed CombatWarlordMagmablaster Manual? 0 Play Time 00:59:04 Cumulative 69.3 hours Start 2024.09.03 @ 02:28:29 End 2024.09.04 @ 23:44:48 Sessions 3 Manual Loads 0 Difficulty Rogue Special Mode None Game No. 93 Rogue 93 Adventurer 0 Explorer 0 Win Type - Total 0 Types 0/0/0/0/0/0/0/0/0 Lore% 35 Gallery% 35 Achievement% 38 Wizard Run 0 Options --------- Layout 0 ASCII 0 Keyboard 0 Movement Arrows Keybinds 0 Fullscreen 1 Font 20/SmallcapsGlow Map View 66x50 Zoom Use 0% Tactical HUD 1 Map Filters NONE Filters NONE Steam 1 RUN: 1f6024db-4bbf-45d7-885b-c7e94df2910b